Cogmind - Beta 13 @@@ ROGUE MODE // 2024.03.04 @ 16:27:31 Player: Treadwheel Result: Destroyed by JV-4RP(R) with Subdweller Laser Performance ------------- Evolutions (0) 0 Regions Visited (2) 400 Robots Destroyed (29) 145 Value Destroyed (671) 671 Prototype IDs (10) 200 Alien Tech Used (0) 0 Bonus (0) 0 TOTAL SCORE: 1416 Bonus ------- None Cogmind --------- Core Integrity 0/250 Matter 291/300 Energy 248/250 System Corruption 0% Temperature Cool (33) Movement Treading (240) Ox1 Location -10/Subcaves Parts ------- > --- POWER (1) -------- Ion Engine > --- PROPULSION (2) --- Light Treads Compact Wheel > --- UTILITY (2+1) ---- Medium Storage Unit Makeshift System Shield (+) Rainbow Chip > --- WEAPON (2+1) ----- Subdweller Laser (+) Subdweller Machine Gun Battle Cannon > --- INVENTORY (10) --- Spiked Treads Sensor Array Signal Interpreter Makeshift Kinetic Plating Scrap Shield Subdweller Shrapnel Launcher Dirty Datajack (20) Datajack Peak State ------------ > --- POWER ------------ Subdweller Power Source Subdweller Power Source > --- PROPULSION ------- Light Treads Compact Wheel Compact Wheel > --- UTILITY ---------- Medium Storage Unit Makeshift System Shield Rainbow Chip > --- WEAPON ----------- Subdweller Laser Battle Rifle Subdweller Machine Gun > --- INVENTORY -------- Spiked Treads Compact Wheel Sensor Array Signal Interpreter Light Armor Plating Scrap Shield Subdweller Shrapnel Launcher Dirty Datajack Datajack [Rating: 32] Favorites ----------- Power Ion Engine Engine Ion Engine Propulsion Compact Wheel Treads Light Treads Leg Aluminum Leg Wheel Compact Wheel Utility Medium Storage Unit Device Structural Scanner Storage Medium Storage Unit Processor Rainbow Chip Hackware Makeshift System Shield Protection Backup Plating I Weapon Medium Laser Energy Gun Medium Laser Energy Cannon Subdweller Beam Cannon Ballistic Gun Subdweller Machine Gun Ballistic Cannon Battle Cannon Launcher Subdweller Shrapnel Launcher Special Weapon Mining Laser Special Melee Weapon Dirty Datajack Build | -11 -10 -10 ------- Run | Yrd Mat Sub Slots Evolved . | . . . Power . | . . . Propulsion . | . . . Utility . | . . . Weapon . | . . . Parts Attached 53 | 5 22 26 Power 6 | . 3 3 Engine 6 | . 3 3 Core . | . . . Reactor . | . . . Propulsion 10 | 3 2 5 Treads 3 | 1 1 1 Leg . | . . . Wheel 7 | 2 1 4 Hover . | . . . Flight . | . . . Utility 19 | 1 12 6 Device 10 | 1 7 2 Storage 1 | . 1 . Processor 1 | . . 1 Hackware 1 | . . 1 Protection 6 | . 4 2 Artifact . | . . . Weapon 18 | 1 5 12 Energy Gun 6 | 1 2 3 Energy Cannon 2 | . . 2 Ballistic Gun 4 | . 1 3 Ballistic Cannon 1 | . . 1 Launcher 1 | . . 1 Special Weapon 3 | . 2 1 Impact Weapon . | . . . Slashing Weapon . | . . . Piercing Weapon . | . . . Special Melee Weapon 1 | . . 1 Unidentified Prototypes . | . . . Parts Lost 7 | . 1 6 Power . | . . . Propulsion 5 | . 1 4 Utility . | . . . Weapon 2 | . . 2 Highest Loss Streak 2 | . 1 2 To Critical Strikes . | . . . Average Slot Usage (%) 97 | . 99 96 Engine 12 | . 13 11 Treads 12 | . 14 11 Wheel 15 | . 14 16 Device 8 | . 12 5 Storage 12 | . 14 11 Processor 3 | . . 5 Hackware 3 | . . 5 Energy Gun 12 | . 14 10 Energy Cannon 1 | . . 2 Ballistic Gun 10 | . 11 10 Special Weapon 3 | . 2 3 Naked Turns . | . . . Heaviest Build 31 | 13 20 31 Greatest Support 32 | 16 16 32 Greatest Overweight (x) 1 | 1 1 1 Average Overweight (x) . | . . . Largest Inventory Capacity 10 | 8 10 10 Average Capacity 9 | 8 9 10 Most Carried 10 | 8 10 10 Average Carried 9 | 6 8 9 Final Capacity 10 | 8 10 10 Final Carried 10 | 8 10 9 Class Distribution -------------------- 55% | Mutant 33% | Derelict-Gunner 8% | Scavenger-Mutant Dominant Class ---------------- Mutant | -10/Materials Derelict-Gunner | -10/Subcaves Resources | -11 -10 -10 ----------- Run | Yrd Mat Sub Matter Collected 938 | 250 288 400 Remotely . | . . . Salvage Created 934 | 54 557 323 Parts 56 | 6 40 10 Haulers Intercepted 2 | . 2 . Recyclers Shooed . | . . . Parts Field Recycled . | . . . Retrieved Matter . | . . . Parts Self-Destructed 6 | . . 6 Prevented . | . . . Kills | -11 -10 -10 ------- Run | Yrd Mat Sub Combat Hostiles Destroyed 20 | . 12 8 Guns 17 | . 11 6 Cannons 2 | . . 2 Classes Destroyed 8 | 1 6 1 Worker 1 | . 1 . Builder 1 | . 1 . Tunneler 2 | 2 . . Hauler 2 | . 2 . Watcher 3 | . 3 . Swarmer 6 | . 6 . Grunt 10 | . 6 4 Subdweller 4 | . . 4 Best Kill Streak 3 | 1 3 2 Combat Bots Only 3 | . 3 2 Max Kills in Single Turn 1 | 1 1 1 Gunslinging . | . . . Exploded . | . . . Melee . | . . . Uniques/NPCs Destroyed . | . . . Combat | -11 -10 -10 -------- Run | Yrd Mat Sub Hostile Shots Fired 115 | . 65 50 Missed 37 | . 21 16 Damage Taken 1244 | . 450 794 Core 264 | . 64 200 Absorbed by Shields . | . . . Core Remaining (%) 100 | 100 . . Volleys Fired 108 | 3 53 52 Largest 3 | 2 2 3 Hottest 170 | 100 100 170 Shots Fired 205 | 6 101 98 Gun 171 | 6 96 69 Cannon 11 | . . 11 Launcher 3 | . . 3 Special 20 | . 5 15 Kinetic 68 | . 36 32 Thermal 137 | 6 65 66 Explosive . | . . . Electromagnetic . | . . . Robot Hit Streak 13 | 2 11 13 Robot Miss Streak 2 | 1 2 2 Penetration Max . | . . . Secondary Targets 1 | . 1 . Max Gunslinging Chain 1 | . 1 . Shots Hit Robots 104 | 3 65 36 Core Hits 43 | 2 27 14 Critical Kills . | . . . Critical Parts Destroyed . | . . . Critical Strikes 5 | . 4 1 Burn 5 | . 4 1 Melee Attacks . | . . . Impact . | . . . Slashing . | . . . Piercing . | . . . Sneak Attacks . | . . . Combat Hostiles . | . . . Follow-up Attacks . | . . . Damage Inflicted 1715 | 50 801 864 Guns 1372 | 50 801 521 Cannons 151 | . . 151 Explosions 192 | . . 192 Melee . | . . . Ramming . | . . . Kinetic 655 | . 244 411 Thermal 1060 | 50 557 453 Explosive . | . . . Electromagnetic . | . . . Impact . | . . . Slashing . | . . . Piercing . | . . . Highest Corruption . | . . . Average Corruption . | . . . Corruption Purged . | . . . Corruption Blocked . | . . . Overload Shots . | . . . Overflow Damage 10 | . . 10 Projectiles . | . . . Explosions 10 | . . 10 Melee . | . . . Knockbacks . | . . . Impact . | . . . Kinetic . | . . . Secondary . | . . . Self-Inflicted Damage . | . . . Shots . | . . . Rammed . | . . . Targets Rammed . | . . . Kicked . | . . . Crushed . | . . . Highest Temperature 326 | 39 326 87 Average Temperature 61 | 24 68 31 Received Heat Transfer 297 | . 198 99 Siege Activations . | . . . Robots Corrupted . | . . . Combat Hostiles . | . . . Parts Fried . | . . . Impact Corruptions . | . . . Robots Melted 1 | . 1 . Combat Hostiles 1 | . 1 . Parts Melted 5 | . 4 1 Heat Transferred 3000 | 148 1961 891 Parts Sabotaged . | . . . Parts Stolen . | . . . Parts Stripped . | . . . Power Chain Reactions . | . . . Alert | -11 -10 -10 ------- Run | Yrd Mat Sub Peak Influence 269 | 10 269 . Initial 6 | . 6 . Average 49 | 4 52 . Maximum Alert Level 1 | . 1 . Low Security (%) 93 | 100 93 . Level 1 6 | . 6 . Level 2 . | . . . Level 3 . | . . . Level 4 . | . . . Level 5 . | . . . High Security . | . . . Max Security . | . . . Squads Dispatched . | . . . Investigation . | . . . Extermination . | . . . Reinforcement . | . . . Assault . | . . . Garrison . | . . . Intercept . | . . . Searches Triggered . | . . . Construction Impeded . | . . . Haulers Reinforced . | . . . Active Scanning Responses . | . . . Cargo Convoy Interrupts . | . . . Stealth | -11 -10 -10 --------- Run | Yrd Mat Sub Distress Signals 2 | . 2 . Communications Jammed . | . . . Distress Signals . | . . . Times Spotted 35 | . 23 12 Peak Tracking Total 5 | . 5 2 Tactical Retreats 5 | . 4 1 Traps | -11 -10 -10 ------- Run | Yrd Mat Sub Traps Triggered 1 | . . 1 Indirectly . | . . . Trap Hack Attempts . | . . . Triggered . | . . . Disarmed . | . . . Reprogrammed . | . . . Reused . | . . . Traps Extracted . | . . . Installed . | . . . Triggered . | . . . Machines | -11 -10 -10 ---------- Run | Yrd Mat Sub Machines Disabled 1 | . . 1 Max in Single Turn 1 | . . 1 Machines Repaired . | . . . Machines Dismantled . | . . . Machines Sabotaged . | . . . Overloaded Fab Kills . | . . . Hacking | -11 -10 -10 --------- Run | Yrd Mat Sub Machines Accessed 11 | . 10 1 Terminals 7 | . 7 . Fabricators . | . . . Repair Stations 1 | . 1 . Recycling Units 2 | . 2 . Scanalyzers . | . . . Garrison Access . | . . . Total Hacks 40 | . 39 1 Successful 18 | . 17 1 Failed 22 | . 22 . Catastrophic 4 | . 4 . Database Lockouts . | . . . Manual 23 | . 23 . Terminals 32 | . 32 . Fabricators . | . . . Repair Stations 2 | . 2 . Recycling Units 5 | . 5 . Scanalyzers . | . . . Garrison Access . | . . . Terminal Hacks 10 | . 9 1 Robot Analysis 1 | . 1 . Unreport Threat 2 | . 2 . Locate Traps 3 | . 3 . Patrol Status 1 | . 1 . Zone Layout 2 | . 2 . Derelict Proto ID Bank 1 | . . 1 Fabricator Hacks . | . . . Repair Station Hacks 1 | . 1 . Refit 1 | . 1 . Recycling Unit Hacks . | . . . Scanalyzer . | . . . Garrison Access Hacks . | . . . Unauthorized Hacks 7 | . 7 . Terminals 6 | . 6 . Assimilate 3 | . 3 . Botnet 2 | . 2 . Operators 1 | . 1 . Fabricators . | . . . Repair Stations . | . . . Recycling Units 1 | . 1 . Reject 1 | . 1 . Scanalyzers . | . . . Garrison Access . | . . . Data Cores Recovered . | . . . Used . | . . . Hacking Detections 9 | . 9 . Full Trace Events 1 | . 1 . Feedback Events . | . . . Feedback Blocked . | . . . Robot Schematics Acquired . | . . . Robots Built . | . . . Authchips . | . . . Time . | . . . Total Robot Build Rating . | . . . Part Schematics Acquired . | . . . Parts Built . | . . . Authchips . | . . . Time . | . . . Total Part Build Rating . | . . . Parts Repaired . | . . . Time . | . . . Parts Recycled . | . . . Recycled Matter . | . . . Retrieved Matter . | . . . Retrieved Components . | . . . Parts Scanalyzed . | . . . Part Schematics Acquired . | . . . Parts Damaged . | . . . Bothacking | -11 -10 -10 ------------ Run | Yrd Mat Sub Used RIF Installer . | . . . Robots Hacked . | . . . Non-combat . | . . . Combat . | . . . Robot Hacks Applied . | . . . Relay Couplers Released . | . . . Fabnet Peak Effective % . | . . . Robots Rewired . | . . . Allies Hacked . | . . . Hacks Repelled . | . . . Allies | -11 -10 -10 -------- Run | Yrd Mat Sub Total Allies 2 | . 2 . Largest Group 1 | . 1 1 Highest-Rated Group 10 | . 10 10 Highest-Rated Ally 10 | . 10 10 Total Orders . | . . . Ally Attacks . | . . . Total Damage . | . . . Kills . | . . . Allies Corrupted . | . . . Allies Melted . | . . . Intel | -11 -10 -10 ------- Run | Yrd Mat Sub Robot Analysis Total 1 | . 1 . Derelict Logs Recovered 1 | . . 1 Drone Launches . | . . . Drone Recoveries . | . . . Exploration | -11 -10 -10 ------------- Run | Yrd Mat Sub Turns Passed 3196 | 65 1252 1879 Spaces Moved 1998 | 44 753 1201 Core . | . . . Treads 186 | . . 186 Legs . | . . . Wheels 1812 | 44 753 1015 Hover . | . . . Flight . | . . . Fastest Speed 95 | 95 100 100 Average Speed 119 | 99 107 128 Slowest Speed 240 | 100 115 240 Overloaded Moves . | . . . Propulsion Burnouts . | . . . Robots Hopped . | . . . Cave-ins Triggered . | . . . Exploration Rate (%) 44 | 3 90 39 Regions Visited 2 Branch Regions 1 Pre-discovered Areas 2 | . . 2 Known Exits Taken . | . . . Unknown Exits Taken 2 | 1 1 . Scrap Searched 5 | . . 5 Spaces Dug 4 | . 4 . Terrain Destroyed 45 | . 4 41 Melee . | . . . Projectile 4 | . 4 . AOE 41 | . . 41 Terrain Rammed . | . . . Walls Destroyed . | . . . Machines Disabled . | . . . Actions | -11 -10 -10 --------- Run | Yrd Mat Sub Total 2561 | 56 1084 1421 Wait 352 | 4 228 120 Move 1996 | 43 752 1201 Hop . | . . . Pick Up 20 | 1 11 8 Fast Attach 14 | 1 4 9 Attach 6 | . 1 5 Detach . | . . . Swap 33 | 4 17 12 Drop 32 | . 18 14 Fire 108 | 3 53 52 Melee . | . . . Ram . | . . . Kick . | . . . Crush . | . . . Escape Stasis . | . . . Rewire . | . . . Trap . | . . . Miscellaneous . | . . . Route ------- -11/Scrapyard -10/Materials (discovered 4 exits: [*Mat x2] / [*Min] / *Sub) -10/Subcaves History --------- Turn | Location | Event 6 | -11/Scrapyard | Discovered new exit (range 3) 66 | -11/Scrapyard | Entered Materials 334 | -10/Materials | Build established: Mutant 535 | -10/Materials | Discovered new exit (range 12) 742 | -10/Materials | Discovered new exit (range 9) 749 | -10/Materials | Discovered new exit (range 16) 1087 | -10/Materials | Discovered new exit (range 16) 1318 | -10/Materials | Entered Subcaves 1318 | -10/Subcaves | Accompanied by 1 ally 1347 | -10/Subcaves | Core integrity fell below 50% 1407 | -10/Subcaves | A swath of the cavern ceiling suddenly collapsed 1603 | -10/Subcaves | Shifting Twisted Machinery released Sub. Beam Cannon 1626 | -10/Subcaves | Shifting Twisted Machinery released Sub. Power Source 1630 | -10/Subcaves | Learned location of Zion (-7) 1630 | -10/Subcaves | Met a Zionite searching for "candidates" 1861 | -10/Subcaves | Lost 3 allies 2035 | -10/Subcaves | Visited 4L-MR0's lab 2039 | -10/Subcaves | Learned location of Storage (-8) 2068 | -10/Subcaves | Found Rainbow Chip 2070 | -10/Subcaves | Attached Rainbow Chip, gained temporary slots: Power, Propulsion, Utility, Weapon 2142 | -10/Subcaves | Core integrity fell below 20% 2429 | -10/Subcaves | Build established: Derelict-Gunner 2977 | -10/Subcaves | Shifting Twisted Machinery released Battle Cannon 2977 | -10/Subcaves | Shifting Twisted Machinery released Sub. Optics 3197 | -10/Subcaves | Destroyed by JV-4RP(R) with Subdweller Laser Last Messages --------------- 02949_ Searching scrap... 02949_ Found Sub. Machine Gun. 02949_ Found Mak. Kinetic Plating. 02949_ Found 25 Matter. 02950_ Acquired 25 matter. 02950_ Dropped Lgt. Armor Plating. 02952_ Acquired Mak. Kinetic Plating. 02955_ Dropped Sub. Machine Gun. Battle Cannon falls loose from the Twisted Machinery. Sub. Optics falls loose from the Twisted Machinery. 02985_ Dropped Battle Rifle. 02986_ Acquired Battle Cannon. 03084_ Com. Wheel destroyed. 03110_ G-47 Trooper destroyed. 03121_ Acquired 35 matter. 03123_ Acquired 3 matter. 03127_ G-34 Mercenary destroyed. 03130_ Acquired 14 matter. 03195_ Com. Wheel destroyed. 03195_ Temporary Propulsion slot lost. Map ----- +----------------------------------------------------+ | ?????????????????????????????????????????????????? | | ?????????????????????????????????????????????????? | | ?????????????????????????????????????????????????? | | ?????????????????????????????????????????????????? | | ?????????????????????????????????????????????????? | | ?????????????????????????????????????????????????? | | ?????????????????????????????????????????????????? | | ?????????????????????????????????????????????????? | | ?????????????????????????????????????????????????? | | ?????????????????????????????????????????????????? | | ?????????????????????????????????????????????????? | | ??????????????? #????????????????????????????????? | | ??????????????? ????????????????????????????????? | | ??????????????? ????????????????????????????????? | | ???????? ?????? #???????????????????????????????? | | ?????? ??????# ##?????????????????????????????? | | ?????? ????## #?????????????????????????????? | | ??????# ??## ??????????????##??????????????? | | ???????# ?# ?????????????? ##?????????????? | | ????????# ## ?????????????? ##????????????? | | ???????## ???###???????? #????????????? | | ???????# ??## ##??????? #????????????? | | ????????# ??# #??####? #????????????? | | ?????????# #?## #### ## #????????????? | | ??????????? ### R #????????????? | | ??????????????# ## %@## ##????????????? | | ???????????????# ### ##?????????????? | | ???????????????# ##### #??????????????? | | ?????????# ### #?# ##??????????????? | | ????????# #??## # # #???????????????? | | ???????# ????## #???????????????? | | ??????# ##??????## " #??????????????? | | ??????# #?????????# # # "###??????????????? | | ?????? #???????#### #####????????????????? | | ?????? #????????# #????????????????????? | | ????? ???####?## ##????????????????????? | | ?????? ????# ### #####?????????????????????? | | ??????##?????# ##???###???????????????????? | | ?????????????# ##???#""#???????????????????? | | ?????????????# ######"""#???????????????????? | | ?????????????## ## # """##??????????????????? | | ?????????????## """ #??????????????????? | | ????????????## [ ""! #??????????????????? | | ???????????## # # #??????????????????? | | ??????????## ## #### "#??????????????????? | | ??????????# ### #?#""#??????????????????? | | ??????????## #?## ##?#" ##?????????????????? | | ??????????# #??# ##??# #?????????????????? | | ####??????# ##??# ##???# ##?????????????????? | | # #####??## ##??# #???## ##?????????????????? | +----------------------------------------------------+ Best States ------------- Heat Dissipation 25 Energy Generation 15 Energy Capacity 250 Matter Stores 300 Matter Capacity 300 Sight Range 16 Robot Scan Range 14 Terrain Scan Density 10 Armor Coverage 150 Utility Shielding 33 Evasion (%) 40 Recoil Reduction 1 Defensive Hacking 11 Item Schematics ----------------- None Robot Schematics ------------------ None Fabricated ------------ Nothing Alien Tech Used ----------------- None Achievements -------------- None Challenges ------------ None Game ------ Seed ThrusterAntigravMeganuke Manual? 0 Play Time 00:39:28 Cumulative 49.0 hours Start 2024.03.04 @ 15:49:15 End 2024.03.04 @ 16:27:31 Sessions 1 Manual Loads 0 Difficulty Rogue Special Mode None Game No. 26 Rogue 26 Adventurer 0 Explorer 0 Win Type - Total 1 Types 1/0/0/0/0/0/0/0/0 Lore% 30 Gallery% 46 Achievement% 36 Wizard Run 0 Options --------- Layout 0 ASCII 0 Keyboard 0 Movement Numpad Keybinds 0 Fullscreen 2 Font 18/SmallcapsGlow Map View 76x50 Zoom Use 0% Tactical HUD 1 Map Filters NONE Filters NONE Steam 1 RUN: ed0be8a2-c4f5-4083-afd8-71ba6ce3c3e3